fUST/lending_fUST_20250802
["ID","MTS","AMOUNT","RATE_DAILY","PERIOD"]
[376860534,1754146238986,-502.23219734,0.00024962,2]
[376860536,1754146238996,-502.23219734,0.00024962,2]
[376860538,1754146239005,-502.23219734,0.00024962,2]
[376860540,1754146239015,-502.23219734,0.00024962,2]
[376860542,1754146239025,-502.23219734,0.00024962,2]
[376860544,1754146239034,-500.81836295,0.00024973,2]
[376860546,1754146239044,-506.63006428,0.00024973,2]
[376860548,1754146239054,-500.0,0.00024973,2]
[376860550,1754146239063,-501.70751776,0.00024973,2]
[376860551,1754146239072,-500.0,0.00024973,2]
[376860553,1754146239082,-500.0,0.00024973,2]
[376860555,1754146239095,-500.0,0.00024973,2]
[376860557,1754146239104,-473.35066136,0.00024973,2]
[376860559,1754146239114,-500.0,0.00024973,2]
[376860561,1754146239123,-570.98049074,0.00024973,2]
[376860563,1754146239133,-500.0,0.00024973,2]
[376860565,1754146239142,-304.20277847,0.00024973,2]
[376860567,1754146239151,-500.0,0.00024973,2]
[376860569,1754146239161,-598.6521222,0.00024973,2]
[376860571,1754146239171,-9592.16442561,0.0002498,2]
[376860573,1754146239181,-9592.16442561,0.0002499,2]
[376860575,1754146239190,-500.0,0.0002499,2]
[376860577,1754146239199,-68981.86386209,0.00025,7]
[376860579,1754146239209,-267.62323382,0.00025005,2]
[376860581,1754146239218,-151.0,0.00025122,2]
[376860583,1754146239227,-151.0,0.00025122,2]
[376860584,1754146239236,-151.0,0.00025122,2]
[376860586,1754146239245,-151.0,0.00025122,2]
[376860588,1754146239256,-151.0,0.00025122,2]
[376860590,1754146239265,-151.0,0.00025122,2]
[376860592,1754146239275,-151.0,0.00025122,2]
[376860594,1754146239284,-151.0,0.00025122,2]
[376860596,1754146239293,-151.0,0.00025122,2]
[376860598,1754146239303,-151.0,0.00025122,2]
[376860600,1754146239313,-151.0,0.00025122,2]
[376860602,1754146239322,-151.0,0.00025122,2]
[376860604,1754146239332,-2030.296672,0.00025122,2]
[376860606,1754146239341,-151.0,0.00025122,2]
[376860608,1754146239351,-151.0,0.00025122,2]
[376860610,1754146239360,-151.0,0.00025122,2]
[376860612,1754146239370,-151.0,0.00025122,2]
[376860614,1754146239380,-151.0,0.00025122,2]
[376860616,1754146239389,-151.0,0.00025122,2]
[376860618,1754146239399,-151.0,0.00025122,2]
[376860620,1754146239408,-151.0,0.00025122,2]
[376860622,1754146239418,-151.0,0.00025122,2]
[376860624,1754146239428,-151.0,0.00025122,2]
[376860626,1754146239437,-151.0,0.00025122,2]
[376860628,1754146239447,-151.0,0.00025122,2]
[376860630,1754146239457,-151.0,0.00025122,2]
[376860632,1754146239466,-707.24623746,0.00025177,2]
[376860634,1754146239475,-500.0,0.00025264,2]
[376860636,1754146239485,-151.0,0.000253,12]
[376860638,1754146239498,-500.0,0.00025379,2]
[376860640,1754146239508,-390.23,0.00025385,2]
[376860642,1754146239517,-719.36887055,0.00025395,2]
[376860644,1754146239527,-154.780689,0.00025497,3]
[376860646,1754146239537,-1000.0,0.00025521,2]
[376860649,1754146239546,-480.57643053,0.00025521,2]
[376860652,1754146239557,-320.2107096,0.00025536,2]
[376860655,1754146239567,-306.7325404,0.00025536,2]
[376860658,1754146239577,-578.5960598,0.00025536,2]
[376860660,1754146239586,-178.4386705,0.00025536,2]
[376860662,1754146239595,-578.5960598,0.00025536,2]
[376860665,1754146239605,-358.7268859,0.00025536,2]
[376860667,1754146239614,-578.5960598,0.00025536,2]
[376860670,1754146239624,-578.5960598,0.00025536,2]
[376860673,1754146239633,-578.5960598,0.00025536,2]
[376860676,1754146239642,-578.5960598,0.00025536,2]
[376860679,1754146239652,-500.0,0.00025538,2]
[376860682,1754146239661,-153.0,0.00025758,2]
[376860685,1754146239671,-153.0,0.00025758,2]
[376860688,1754146239680,-153.0,0.00025758,2]
[376860692,1754146239690,-306.0,0.00025758,2]
[376860695,1754146239700,-306.0,0.00025758,2]
[376860698,1754146239709,-153.0,0.00025758,2]
[376860701,1754146239719,-153.0,0.00025758,2]
[376860704,1754146239728,-153.0,0.00025758,2]
[376860707,1754146239738,-153.0,0.00025758,2]
[376860711,1754146239747,-500.0,0.00025885,2]
[376860714,1754146239757,-719.36887055,0.0002593,2]
[376860717,1754146239767,-1914095.64990568,0.00026,2]
[376860721,1754146239782,-500.0,0.00026,2]
[376860723,1754146239793,-4258.78084719,0.00026,2]
[376861416,1754146245182,-502.23219734,0.00024962,2]
[376861418,1754146245192,-502.23219734,0.00024962,2]
[376861420,1754146245201,-151.0,0.00025122,2]
[376861422,1754146245210,-151.0,0.00025122,2]
[376861425,1754146245220,-151.0,0.00025122,2]
[376861427,1754146245230,-2630.11986892,0.00026,2]
[376861429,1754146245241,-118223.9156989,0.00026,2]
[376861431,1754146245252,-86699.9995,0.00026,2]
[376861433,1754146245264,-7302.18999999,0.00026,2]
[376861435,1754146245276,-35512.89018186,0.00026,2]
[376861518,1754146246129,-151.0,0.00025122,2]
[376861520,1754146246140,-2259.57873376,0.00026,2]
[376862690,1754146328880,198.0,0.00022,2]
[376862691,1754146330088,198.0,0.00023014,7]
[376862692,1754146352064,-79000.0,0.00023689,2]
[376862694,1754146638767,2257.79408358,0.0002306,2]
[376862697,1754147020617,160.432829,0.00013699,2]
[376862698,1754147020842,160.432829,0.00020951,2]
[376862700,1754147103238,2861.0,0.000188,2]
[376862701,1754147128703,200.0,0.00022,2]
[376862702,1754147142119,-165.46692333,0.00023573,2]
[376862703,1754147142140,-423.29321061,0.00023673,2]
[376862706,1754147205223,11009.46072436,0.00022678,2]
[376862707,1754147205246,13890.53927564,0.00022678,2]
[376862708,1754147205307,213.0,0.00027397,120]
[376862709,1754147213093,-151.09437211,0.00023573,2]
[376862710,1754147213113,-18.34813061,0.00023673,2]
[376862712,1754147230086,-58.35865878,0.00023673,2]
[376862713,1754147230107,-500.0,0.00023673,2]
[376862714,1754147230127,-103.04606103,0.00023673,2]
[376862715,1754147234009,166.38079724,0.00022965,2]
[376862716,1754147302504,160.0,0.00013699,2]
[376862717,1754147302909,260.0,0.00014247,2]
[376862718,1754147303290,360.0,0.00014795,2]
[376862719,1754147303472,460.0,0.00015342,2]
[376862720,1754147303811,560.0,0.0001589,2]
[376862721,1754147305563,660.0,0.00016438,2]
[376862722,1754147305887,760.0,0.00016986,2]
[376862723,1754147306339,860.0,0.00017534,2]
[376862724,1754147306683,867.34500325,0.00018082,2]
[376862725,1754147335306,754.6,0.00027397,120]
[376862727,1754147364386,675.90436875,0.0002096,2]
[376862779,1754147437888,-478.03007334,0.000236,2]
[376862780,1754147437899,-1200.0,0.00023671,2]
[376862781,1754147437910,-3730.86507367,0.00023672,2]
[376862782,1754147437921,-300.0,0.00023672,2]
[376862783,1754147437930,-300.0,0.00023672,2]
[376862784,1754147437940,-396.95393897,0.00023673,2]
[376862785,1754147437950,-500.0,0.00023673,2]
[376862786,1754147437960,-500.0,0.00023673,2]
[376862787,1754147437971,-500.0,0.00023673,2]
[376862788,1754147437980,-235.79192868,0.00023673,2]
[376862789,1754147437990,-1200.0,0.00023674,2]
[376862790,1754147437999,-151.0,0.00023675,2]
[376862791,1754147438009,-151.0,0.00023675,2]
[376862792,1754147438019,-151.0,0.00023675,2]
[376862793,1754147438029,-2030.296672,0.00023675,2]
[376862794,1754147438039,-151.0,0.00023675,2]
[376862795,1754147438049,-151.0,0.00023675,2]
[376862796,1754147438059,-151.0,0.00023675,2]
[376862797,1754147438068,-151.0,0.00023675,2]
[376862798,1754147438079,-300.0,0.00023675,2]
[376862799,1754147438089,-151.0,0.00023675,2]
[376862800,1754147438099,-199.64737061,0.00023675,2]
[376862801,1754147438109,-300.0,0.00023675,2]
[376862802,1754147438119,-151.0,0.00023675,2]
[376862803,1754147438129,-300.0,0.00023675,2]
[376862804,1754147438138,-151.0,0.00023675,2]
[376862805,1754147438148,-151.0,0.00023675,2]
[376862806,1754147438158,-300.0,0.00023675,2]
[376862807,1754147438168,-151.0,0.00023675,2]
[376862808,1754147438177,-300.0,0.00023675,2]
[376862809,1754147438187,-151.0,0.00023675,2]
[376862810,1754147438196,-300.0,0.00023675,2]
[376862811,1754147438206,-151.0,0.00023675,2]
[376862812,1754147438216,-300.0,0.00023675,2]
[376862813,1754147438233,-151.0,0.00023675,2]
[376862814,1754147438248,-300.0,0.00023675,2]
[376862815,1754147438263,-151.0,0.00023675,2]
[376862816,1754147438279,-200.0,0.00023675,2]
[376862817,1754147438291,-151.0,0.00023675,2]
[376862818,1754147438304,-151.0,0.00023675,2]
[376862819,1754147438318,-151.0,0.00023675,2]
[376862820,1754147438332,-151.0,0.00023675,2]
[376862821,1754147438346,-151.0,0.00023675,2]
[376862822,1754147438360,-151.0,0.00023675,2]
[376862823,1754147438373,-151.0,0.00023675,2]
[376862824,1754147438387,-150.873,0.00023675,4]
[376862825,1754147438401,-10514.54194272,0.00023689,2]
[376862826,1754147438428,-153.87855946,0.00023675,2]
[376862827,1754147438444,-2029.82316812,0.00023689,2]
[376862828,1754147438620,-2164.2323356,0.00023689,2]
[376862829,1754147438765,-8709.37772382,0.00023689,2]
[376862831,1754147438777,-500.0,0.000237,2]
[376862833,1754147438790,-2105.41764886,0.0002373,2]
[376862835,1754147438805,-2183.31810187,0.00023785,2]
[376862837,1754147438817,-2264.10087163,0.0002384,2]
[376862838,1754147438827,-150.0,0.00023888,2]
[376862840,1754147438840,-203.1949959,0.00024004,2]
[376862842,1754147438852,-200.0,0.00024145,15]
[376862844,1754147438866,-200.0,0.00024145,15]
[376862846,1754147438877,-200.0,0.00024145,15]
[376862847,1754147438887,-200.0,0.00024145,15]
[376862849,1754147438899,-200.0,0.00024145,15]
[376862851,1754147438913,-500.0,0.0002425,2]
[376862853,1754147438924,-500.15857564,0.0002425,2]
[376862854,1754147438936,-841.70373825,0.00024605,2]
[376862855,1754147438949,-160.0,0.00024605,2]
[376862856,1754147438960,-527.02465094,0.00024712,2]
[376862857,1754147438971,-216.27517063,0.00024712,2]
[376862858,1754147438983,-460.86285458,0.00024712,2]
[376862859,1754147438994,-12646.87439643,0.00024712,2]
[376862860,1754147439005,-160.0,0.00024712,2]
[376862861,1754147439016,-160.0,0.00024712,2]
[376862862,1754147439028,-160.0,0.00024712,2]
[376862863,1754147439039,-160.0,0.00024712,2]
[376862864,1754147439050,-215.0795835,0.00024712,2]
[376862865,1754147439060,-231.57249719,0.00024712,2]
[376862866,1754147439071,-160.0,0.00024712,2]
[376862867,1754147439084,-151.0,0.00024712,2]
[376862868,1754147439095,-800.0,0.00024712,2]
[376862869,1754147439106,-500.0,0.00024712,2]
[376862870,1754147439117,-500.0,0.00024712,2]
[376862871,1754147439128,-500.0,0.00024712,2]
[376862872,1754147439139,-163.7949765,0.00024712,2]
[376862873,1754147439151,-289.97248757,0.00024712,2]
[376862874,1754147439163,-151.0,0.00024712,2]
[376862875,1754147439173,-152.8471771,0.00024712,2]
[376862876,1754147439184,-151.0,0.00024712,2]
[376862877,1754147439195,-151.0,0.00024712,2]
[376862878,1754147439206,-500.0,0.00024712,2]
[376862879,1754147439217,-500.0,0.00024712,2]
[376862880,1754147439228,-500.0,0.00024712,2]
[376862881,1754147439238,-151.56511578,0.00024712,2]
[376862882,1754147439251,-151.0,0.00024712,2]
[376862883,1754147439271,-151.0,0.00024712,2]
[376862884,1754147439284,-151.0,0.00024712,2]
[376862885,1754147439296,-500.0,0.00024712,2]
[376862886,1754147439307,-151.57197422,0.00024712,2]
[376862887,1754147439319,-151.0,0.00024712,2]
[376862888,1754147439330,-199.99898634,0.00024712,2]
[376862889,1754147439344,-500.0,0.00024712,2]
[376862890,1754147439355,-575.740778,0.00024714,2]
[376862891,1754147439366,-1027.9478858,0.00024741,2]
[376862892,1754147439378,-824.4070642,0.00024799,2]
[376862893,1754147439389,-2000.0,0.00024873,2]
[376862894,1754147439400,-188.45,0.00024873,2]
[376862895,1754147439411,-155.15,0.00024899,7]
[376862896,1754147439422,-151.0,0.00024986,2]
[376862897,1754147439434,-800.0,0.00024986,2]
[376862898,1754147439445,-500.0,0.00024986,2]
[376862899,1754147439456,-584.84944704,0.00024986,2]
[376862900,1754147439467,-500.0,0.00024986,2]
[376862901,1754147439479,-151.0,0.00024986,2]
[376862902,1754147439490,-151.0,0.00024986,2]
[376862903,1754147439501,-500.0,0.00024986,2]
[376862904,1754147439512,-500.0,0.00024986,2]
[376862905,1754147439523,-500.0,0.00024986,2]
[376862906,1754147439534,-152.6791758,0.00024986,2]
[376862907,1754147439544,-500.0,0.00024986,2]
[376862908,1754147439555,-151.0,0.00024986,2]
[376862909,1754147439571,-500.0,0.00024986,2]
[376862910,1754147439584,-155.15,0.00024999,7]
[376862911,1754147439595,-155.15,0.00025099,7]
[376862912,1754147439608,-602.99621933,0.00025122,2]
[376862913,1754147439620,-180.49047017,0.00025122,2]
[376862914,1754147439632,-155.15,0.00025199,7]
[376862915,1754147439644,-153.0,0.0002521,2]
[376862916,1754147439657,-156.04755545,0.00025221,2]
[376862917,1754147439668,-151.0,0.0002526,2]
[376862918,1754147439678,-800.0,0.0002526,2]
[376862919,1754147439687,-500.0,0.0002526,2]
[376862920,1754147439697,-500.0,0.0002526,2]
[376862921,1754147439707,-151.0,0.0002526,2]
[376862922,1754147439716,-151.0,0.0002526,2]
[376862923,1754147439726,-500.0,0.0002526,2]
[376862924,1754147439742,-605.37951896,0.0002526,2]
[376862927,1754147439931,-500.0,0.0002526,2]
[376862928,1754147439952,-500.0,0.0002526,2]
[376862929,1754147439962,-151.0,0.0002526,2]
[376862930,1754147439971,-500.0,0.0002526,2]
[376862931,1754147439981,-330.19,0.00025272,2]
[376862932,1754147439990,-155.15,0.00025299,7]
[376862933,1754147439999,-500.0,0.00025393,2]
[376862934,1754147440010,-155.15,0.00025399,7]
[376862935,1754147440019,-155.15,0.00025499,7]
[376862936,1754147440029,-151.0,0.00025534,2]
[376862937,1754147440038,-800.0,0.00025534,2]
[376862938,1754147440048,-500.0,0.00025534,2]
[376862939,1754147440057,-500.0,0.00025534,2]
[376862940,1754147440066,-151.0,0.00025534,2]
[376862941,1754147440075,-281.29689499,0.00025534,2]
[376862942,1754147440087,-500.0,0.00025534,2]
[376862943,1754147440096,-500.0,0.00025534,2]
[376862944,1754147440105,-500.0,0.00025534,2]
[376862945,1754147440115,-151.0,0.00025534,2]
[376862946,1754147440124,-500.0,0.00025534,2]
[376862947,1754147440133,-155.15,0.00025599,7]
[376862948,1754147440143,-155.15,0.00025699,7]
[376862949,1754147440154,-155.19,0.00025799,7]
[376862950,1754147440164,-151.0,0.00025808,2]
[376862951,1754147440174,-800.0,0.00025808,2]
[376862952,1754147440185,-500.0,0.00025808,2]
[376862953,1754147440194,-357.0,0.00025808,2]
[376862954,1754147440203,-500.0,0.00025808,2]
[376862955,1754147440212,-349.0,0.00025808,2]
[376862956,1754147440221,-500.0,0.00025808,2]
[376862957,1754147440231,-500.0,0.00025808,2]
[376862958,1754147440240,-675.90436875,0.0002596,2]
[376862959,1754147440249,-872064.68037396,0.00026,2]
[376862960,1754147440357,269.0,0.00027397,120]
[376862961,1754147440513,-171696.08922089,0.00026,2]
[376863466,1754147445931,-478.03007327,0.00024163,2]
[376863468,1754147445941,-54.80527826,0.00026,2]
[376863519,1754147446464,-12001.0221666,0.00026,2]
[376863523,1754147446508,-8121.96987303,0.00026,2]
[376864238,1754147454071,198.1,0.0002306,2]
[376864506,1754147457033,121.73055512,0.000221,8]
[376864510,1754147457059,29.26944488,0.000221,8]
[376871470,1754147542175,160.0,0.00013699,2]
[376871471,1754147542517,260.0,0.00014247,2]
[376871472,1754147542861,360.0,0.00014795,2]
[376871473,1754147543195,460.0,0.00015342,2]
[376871474,1754147543522,300.0,0.0001589,2]
[376871475,1754147572833,816.13,0.00022,2]
[376871476,1754147573226,816.13,0.00022705,2]
[376871477,1754147642548,634.76,0.00022705,2]
[376871479,1754147712233,564.23,0.00022705,2]
[376871480,1754147783148,522.9,0.00022705,2]
[376871482,1754147858982,464.8,0.00022705,2]
[376871483,1754147890056,165.139328,0.00013699,2]
[376871484,1754147890297,165.139328,0.00020548,2]
[376871486,1754147930368,413.16,0.00022705,2]
[376871487,1754147999449,367.25,0.00022705,2]
[376871489,1754148069609,326.45,0.00022705,2]
[376871490,1754148138875,290.17,0.00022705,2]
[376871492,1754148168281,165.0,0.00022,2]
[376871493,1754148209097,257.93,0.00022705,2]
[376871494,1754148253067,165.0,0.00023,2]
[376871495,1754148254664,165.0,0.00023,2]
[376871496,1754148258225,165.0,0.00023,2]
[376871497,1754148279344,229.27,0.00023,2]
[376871499,1754148347110,-1799.63713066,0.00023323,2]
[376871500,1754148347133,-300.0,0.00023423,2]
[376871501,1754148347154,-218.90872177,0.00023423,2]
[376871502,1754148352054,203.8,0.00023,2]
[376871504,1754148414091,-171.79896871,0.00023323,2]
[376871505,1754148423020,181.15,0.00023,2]
[376871508,1754148452080,-300.0,0.00023422,2]
[376871509,1754148452101,-81.09127823,0.00023423,2]
[376871510,1754148452122,-165.06358578,0.00023423,2]
[376871537,1754148458839,11352.32189912,0.000229,7]
[376871538,1754148458862,12644.80206013,0.000229,7]
[376871539,1754148494559,161.03,0.00023,2]
[376871544,1754148523578,4263.89040689,0.0002249,7]
[376871545,1754148528799,2500.0,0.00019411,2]
[376871546,1754148532503,430.27753298,0.00020507,2]
[376871547,1754148532527,2069.72246702,0.00020507,2]
[376871548,1754148536135,2500.0,0.00021603,2]
[376871549,1754148539792,2500.0,0.00022699,2]
[376871551,1754148570166,626.6206341,0.000208,2]
[376871552,1754148579532,155.0,0.00023,2]
[376871553,1754148585300,155.0,0.00023,2]
[376871554,1754148588036,155.0,0.00023,2]
[376871556,1754148609910,155.0,0.00023,2]
[376871557,1754148630326,156.00526187,0.00023,2]
[376871607,1754148632731,-179.65122183,0.00023323,2]
[376871608,1754148632741,-1200.0,0.00023422,2]
[376871609,1754148632750,-270.829,0.00023423,3]
[376871610,1754148632760,-1200.0,0.00023423,2]
[376871611,1754148632769,-300.0,0.00023423,2]
[376871612,1754148632778,-300.0,0.00023423,2]
[376871613,1754148632787,-9940.74761946,0.00023424,2]
[376871614,1754148632839,-2399.02,0.00023424,2]
[376871616,1754148632851,-2396.00307459,0.00023424,2]
[376871622,1754148632896,-10164.22930595,0.00023424,2]
[376871623,1754148632906,-158.416,0.00023673,2]
[376871624,1754148632915,-172.061,0.00023673,2]
[376871625,1754148632925,-589.523,0.00023673,2]
[376871626,1754148632934,-151.0,0.000237,8]
[376871627,1754148632944,-2000.0,0.000238,2]
[376871628,1754148632953,-2000.0,0.000238,3]
[376871629,1754148632962,-200.0,0.00023892,15]
[376871630,1754148632971,-200.0,0.00023892,15]
[376871631,1754148632980,-200.0,0.00023892,15]
[376871632,1754148632990,-200.0,0.00023892,15]
[376871633,1754148632999,-200.0,0.00023892,15]
[376871634,1754148633008,-150.0,0.00024135,2]
[376871635,1754148633017,-215.0795835,0.00024458,2]
[376871636,1754148633027,-4574.34415117,0.00024573,2]
[376871637,1754148633036,-318.6,0.00024587,2]
[376871638,1754148633046,-160.0,0.00024592,2]
[376871639,1754148633056,-151.0,0.000246,2]
[376871640,1754148633067,-151.0,0.000246,2]
[376871641,1754148633076,-151.0,0.000246,2]
[376871642,1754148633086,-151.0,0.000246,2]
[376871643,1754148633096,-151.0,0.000246,2]
[376871644,1754148633106,-151.0,0.000246,2]
[376871645,1754148633117,-151.0,0.000246,2]
[376871646,1754148633127,-151.0,0.000246,2]
[376871647,1754148633136,-151.0,0.000246,2]
[376871648,1754148633146,-151.0,0.000246,2]
[376871649,1754148633158,-151.0,0.000246,2]
[376871650,1754148633168,-151.0,0.000246,2]
[376871651,1754148633177,-151.0,0.000246,2]
[376871652,1754148633187,-151.0,0.000246,2]
[376871653,1754148633196,-151.0,0.000246,2]
[376871654,1754148633206,-151.0,0.000246,2]
[376871655,1754148633217,-151.0,0.000246,2]
[376871658,1754148633403,-151.0,0.000246,2]
[376871660,1754148633421,-151.0,0.000246,2]
[376871662,1754148633431,-151.0,0.000246,2]
[376871664,1754148633441,-151.0,0.000246,9]
[376871666,1754148633451,-180.45,0.00024601,3]
[376871668,1754148633460,-541.39,0.00024601,3]
[376871670,1754148633471,-500.0,0.00024608,2]
[376871672,1754148633481,-377.24601794,0.00024608,2]
[376871674,1754148633491,-8302.29,0.00024609,2]
[376871675,1754148633501,-70386.4105444,0.0002461,2]
[376871676,1754148633511,-162.07,0.00024611,2]
[376871677,1754148633521,-160.0,0.00024613,2]
[376871678,1754148633531,-231.57249719,0.00024613,2]
[376871679,1754148633541,-216.27517063,0.00024613,2]
[376871680,1754148633551,-348.95024602,0.00024614,2]
[376871681,1754148633563,-500.0,0.00024614,2]
[376871682,1754148633574,-168.75427861,0.00024614,2]
[376871683,1754148633584,-132926.57549343,0.00024615,2]
[376871684,1754148633597,-377.77915426,0.00024615,2]
[376871718,1754148638574,-358.52255497,0.000237,2]
[376871720,1754148638584,-610.94176714,0.00024607,2]
[376871722,1754148638593,-500.0,0.00024607,2]
[376871724,1754148638603,-500.0,0.00024607,2]
[376871726,1754148638612,-502.73276651,0.00024607,2]
[376871728,1754148638622,-500.0,0.00024607,2]
[376871730,1754148638631,-440.817279,0.00024607,2]
[376871732,1754148638640,-500.0,0.00024607,2]
[376871734,1754148638649,-586.04333938,0.00024607,2]
[376871735,1754148638658,-1182.25501822,0.00024607,2]
[376871736,1754148638667,-500.0,0.00024607,2]
[376871737,1754148638677,-500.0,0.00024607,2]
[376871738,1754148638686,-500.0,0.00024607,2]
[376871739,1754148638696,-291.14557962,0.00024607,2]
[376871740,1754148638705,-500.0,0.00024607,2]
[376871741,1754148638714,-500.0,0.00024607,2]
[376871742,1754148638723,-483.31098175,0.00024607,2]
[376871743,1754148638732,-1182.25501822,0.00024607,2]
[376871744,1754148638742,-500.0,0.00024607,2]
[376871745,1754148638751,-242.87005935,0.00024607,2]
[376871746,1754148638760,-53.07823812,0.00024607,2]
[376871751,1754148638843,-446.92176188,0.00024607,2]
[376871752,1754148638853,-500.0,0.00024607,2]
[376871753,1754148638862,-1182.25501822,0.00024607,2]
[376871754,1754148638872,-500.0,0.00024607,2]
[376871755,1754148638882,-500.0,0.00024607,2]
[376871756,1754148638892,-500.0,0.00024607,2]
[376871757,1754148638901,-500.0,0.00024607,2]
[376871758,1754148638910,-1182.25501822,0.00024607,2]
[376871759,1754148638920,-500.0,0.00024607,2]
[376871760,1754148638929,-465.42831159,0.00024607,2]
[376871761,1754148638938,-500.0,0.00024607,2]
[376871762,1754148638948,-500.0,0.00024607,2]
[376871763,1754148638957,-1182.25501822,0.00024607,2]
[376871764,1754148638966,-500.0,0.00024607,2]
[376871765,1754148638976,-135349.22273424,0.00024615,2]
[376871766,1754148638985,-500.0,0.00024673,2]
[376871767,1754148638994,-500.0,0.00024673,2]
[376871768,1754148639003,-500.0,0.00024673,2]
[376871769,1754148639013,-387.65173653,0.00024673,2]
[376871770,1754148639022,-501.60499278,0.00024673,2]
[376871771,1754148639031,-549.5844987,0.00024673,2]
[376871772,1754148639041,-500.0,0.00024673,2]
[376871773,1754148639050,-500.0,0.00024673,2]
[376871774,1754148639059,-500.0,0.00024673,2]
[376871775,1754148639070,-500.0,0.00024673,2]
[376871776,1754148639079,-500.0,0.00024673,2]
[376871777,1754148639089,-500.0,0.00024673,2]
[376871778,1754148639098,-500.01772604,0.00024673,2]
[376871779,1754148639107,-500.0,0.00024673,2]
[376871780,1754148639116,-500.0,0.00024673,2]
[376871781,1754148639126,-500.0,0.00024673,2]
[376871782,1754148639135,-500.9714425,0.00024673,2]
[376871783,1754148639144,-501.53444438,0.00024673,2]
[376871784,1754148639154,-1769.36,0.000247,7]
[376871785,1754148639163,-4985.39,0.000247,7]
[376871786,1754148639172,-265.29573587,0.0002474,2]
[376871787,1754148639182,-151.0,0.000248,5]
[376871788,1754148639191,-19154.04001289,0.000248,3]
[376871789,1754148639201,-2000.0,0.000248,4]
[376871790,1754148639211,-2000.0,0.000248,5]
[376871791,1754148639220,-2000.0,0.000248,6]
[376871792,1754148639229,-260.54668281,0.000248,2]
[376871793,1754148639238,-12646.87439643,0.000248,3]
[376871794,1754148639248,-600.0,0.00024873,2]
[376871795,1754148639257,-500.0,0.00024873,2]
[376871796,1754148639266,-504.49301008,0.00024873,2]
[376871797,1754148639279,-501.05777975,0.00024873,2]
[376871798,1754148639289,-500.65338569,0.00024873,2]
[376871799,1754148639298,-500.92565472,0.00024873,2]
[376871800,1754148639307,-500.0,0.00024873,2]
[376871801,1754148639318,-501.66944274,0.00024873,2]
[376871802,1754148639327,-500.0,0.00024873,2]
[376871803,1754148639336,-500.0,0.00024873,2]
[376871804,1754148639346,-638.8023183,0.00024873,2]
[376871805,1754148639355,-500.0,0.00024873,2]
[376871806,1754148639365,-500.0,0.00024873,2]
[376871807,1754148639375,-150.0,0.00024873,2]
[376871808,1754148639385,-500.0,0.00024873,2]
[376871809,1754148639394,-500.0,0.00024873,2]
[376871810,1754148639403,-501.35320571,0.00024873,2]
[376871811,1754148639412,-501.44784454,0.00024873,2]
[376871812,1754148639422,-501.14588284,0.00024873,2]
[376871813,1754148639432,-500.0,0.00024873,2]
[376871814,1754148639442,-500.0,0.00024873,2]
[376871815,1754148639451,-500.0,0.00024873,2]
[376871816,1754148639460,-500.0,0.00024873,2]
[376871817,1754148639469,-500.0,0.00024873,2]